[Event "SVK Extraliga 2019-20"]
[Site "Slovakia"]
[Date "2019.11.23"]
[Round "3.7"]
[White "Cibickova, Zuzana"]
[Black "Federic, Jozef"]
[Result "1-0"]
[ECO "E08"]
[WhiteElo "2258"]
[BlackElo "2209"]
[Annotator "NA"]
[PlyCount "99"]
[EventDate "2019.10.19"]
[EventType "team-tourn"]
[EventCountry "SVK"]
[SourceTitle "playchess.com"]
[Source "ChessBase"]
[SourceQuality "1"]
[WhiteTeam "Podhajska"]
[BlackTeam "Modra"]
[TimeControl "40/5400+30:1800+30"]

1. Nf3 {[%emt 0:00:00]} d5 {[%emt 0:00:00]} 2. c4 {[%emt 0:00:00]} e6 {[%emt 0:00:21]} 3. g3 {[%emt 0:00:00]} Nf6 {[%emt 0:00:43]} 4. Bg2 {[%emt 0:00:10]} Be7 {[%emt 0:02:06]} 5. d4 {[%emt 0:00:42]} O-O {[%emt 0:00:39]} 6. O-O {[%emt 0:00:04]} c6 {[%emt 0:04:21]} 7. Qc2 {[%emt 0:01:20]} b6 {[%emt 0:05:06]} 8. Rd1 {[%emt 0:00:28]} Bb7 {[%emt 0:01:56]} 9. b3 {[%emt 0:00:33]} Nbd7 {[%emt 0:02:02]} 10. Nc3 {[%emt 0:02:20]} Rc8 {[%emt 0:02:46]} 11. e4 {[%emt 0:02:37]} dxe4 {[%emt 0:09:38]} 12. Nxe4 {[%emt 0:00:13]} c5 {[%emt 0:07:47]} 13. Nxf6+ {[%emt 0:03:27]} Bxf6 {[%emt 0:01:59]} 14. Ng5 {[%emt 0:04:04]} Bxg5 {[%emt 0:00:07]} 15. Bxb7 {[%emt 0:00:12]} Rc7 {[%emt 0:00:55]} 16. dxc5 {[%emt 0:08:30]} Bxc1 {[%emt 0:13:53]} 17. Raxc1 {[%emt 0:01:45]} bxc5 {[%emt 0:03:57]} 18. Bg2 {[%emt 0:02:34]} Qe7 {[%emt 0:07:09]} 19. Rd2 {[%emt 0:11:00]} Nb6 {[%emt 0:06:25]} 20. Rcd1 {[%emt 0:05:16]} h6 {[%emt 0:00:23]} 21. Qc3 {[%emt 0:01:24]} Rfc8 {[%emt 0:02:14]} 22. h3 {[%emt 0:18:01]} Rd7 {[%emt 0:03:56]} 23. Qa5 {[%emt 0:08:44]} Rxd2 {[%emt 0:01:28]} 24. Rxd2 {[%emt 0:01:14]} Rc7 {[%emt 0:00:44]} 25. Kh2 {[%emt 0:01:31]} g6 {[%emt 0:03:41]} 26. Rd3 {[%emt 0:01:09]} Kg7 {[%emt 0:00:39]} 27. a4 {[%emt 0:02:48]} Qf6 {[%emt 0:02:41]} 28. Qd2 {[%emt 0:01:04]} Qe7 {[%emt 0:03:39]} 29. Qa5 {[%emt 0:09:09]} Kh7 {[%emt 0:02:25]} 30. Rd1 {[%emt 0:03:04]} Kg7 {[%emt 0:02:22]} 31. Kg1 {[%emt 0:04:50]} Kg8 {[%emt 0:02:31]} 32. Rd2 {[%emt 0:02:02]} Kg7 {[%emt 0:02:16]} 33. Rd3 {[%emt 0:00:15]} Kh7 {[%emt 0:00:21]} 34. Rd1 {[%emt 0:01:22]} Kg8 {[%emt 0:00:31]} 35. Qb5 {[%emt 0:00:58]} Kf8 {[%emt 0:01:53]} 36. a5 {[%emt 0:00:47]} Nd7 {[%emt 0:03:26]} 37. Bc6 {[%emt 0:00:38]} Ne5 {[%emt 0:00:19]} 38. Qb8+ {[%emt 0:00:42]} Kg7 {[%emt 0:00:01]} 39. Bg2 {[%emt 0:00:31]} Nc6 {[%emt 0:00:48]} 40. Bxc6 {[%emt 0:01:02]} Rxc6 {[%emt 0:00:01]} 41. Rd8 {[%emt 0:32:53]} Qc7 {[%emt 0:31:42]} 42. Rg8+ {[%emt 0:00:00]} Kf6 {[%emt 0:00:00]} 43. Qf8 {[%emt 0:00:00]} Qxa5 {[%emt 0:00:00]} 44. Kg2 {[%emt 0:00:00]} Qe1 {[%emt 0:00:00]} 45. Qd8+ {[%emt 0:00:00]} Kf5 {[%emt 0:00:00]} 46. Rf8 {[%emt 0:00:00]} Qe4+ {[%emt 0:00:58]} 47. Kh2 {[%emt 0:00:00]} Qd4 {[%emt 0:00:25]} 48. Rxf7+ {[%emt 0:00:00]} Ke5 {[%emt 0:00:13]} 49. Qh8+ {[%emt 0:00:00]} Kd6 {[%emt 0:00:11]} 50. Qb8+ {[%emt 0:00:00] Kd5} 1-0

[Event "SVK Extraliga 2019-20"]
[Site "Slovakia"]
[Date "2019.11.23"]
[Round "3.7"]
[White "Bochnickova, Andrea"]
[Black "Hrabusa, Matej"]
[Result "0-1"]
[ECO "B94"]
[WhiteElo "2122"]
[BlackElo "2360"]
[Annotator "NA"]
[PlyCount "58"]
[EventDate "2019.10.19"]
[EventType "team-tourn"]
[EventCountry "SVK"]
[SourceTitle "playchess.com"]
[Source "ChessBase"]
[SourceQuality "1"]
[WhiteTeam "KSN"]
[BlackTeam "Liptovska"]
[TimeControl "40/5400+30:1800+30"]

1. e4 {[%emt 0:08:47]} c5 {[%emt 0:00:00]} 2. Nf3 {[%emt 0:00:06]} d6 {[%emt 0:00:03]} 3. d4 {[%emt 0:00:04]} cxd4 {[%emt 0:00:05]} 4. Nxd4 {[%emt 0:00:04]} Nf6 {[%emt 0:00:10]} 5. Nc3 {[%emt 0:00:13]} a6 {[%emt 0:00:06]} 6. Bg5 {[%emt 0:00:27]} Nbd7 {[%emt 0:00:56]} 7. Qe2 {[%emt 0:00:55]} g6 {[%emt 0:02:38]} 8. O-O-O {[%emt 0:01:49]} Bg7 {[%emt 0:03:07]} 9. f4 {[%emt 0:04:08]} O-O {[%emt 0:02:45]} 10. e5 {[%emt 0:03:49]} dxe5 {[%emt 0:02:18]} 11. fxe5 {[%emt 0:04:33]} Qa5 {[%emt 0:00:15]} 12. Nf3 {[%emt 0:01:45]} Ng4 {[%emt 0:04:59]} 13. Rd5 {[%emt 0:02:14]} b5 {[%emt 0:04:41]} 14. h3 {[%emt 0:06:22]} Nh6 {[%emt 0:07:43]} 15. Qd2 {[%emt 0:08:29]} Nf5 {[%emt 0:02:30]} 16. g4 {[%emt 0:01:20]} Ng3 {[%emt 0:03:06]} 17. Rg1 {[%emt 0:02:23]} Nxf1 {[%emt 0:00:52]} 18. Rxf1 {[%emt 0:00:06]} Nb6 {[%emt 0:03:44]} 19. Rd8 {[%emt 0:03:09]} Be6 {[%emt 0:08:15]} 20. Rxa8 {[%emt 0:00:53]} Rxa8 {[%emt 0:00:59]} 21. a3 {[%emt 0:13:02]} Nc4 {[%emt 0:04:09]} 22. Qf4 {[%emt 0:15:05]} b4 {[%emt 0:05:27]} 23. Nb1 {[%emt 0:10:18]} bxa3 {[%emt 0:01:40]} 24. bxa3 {[%emt 0:00:21]} Qb5 {[%emt 0:05:56]} 25. Nbd2 {[%emt 0:03:17]} Nxd2 {[%emt 0:01:42]} 26. Nxd2 {[%emt 0:00:38]} Bxe5 {[%emt 0:00:38]} 27. Qe4 {[%emt 0:03:27]} Rd8 {[%emt 0:02:48]} 28. Rf3 {[%emt 0:03:28]} Bb2+ {[%emt 0:00:35]} 29. Kd1 {[%emt 0:00:14]} Qxg5 {[%emt 0:00:09]} 0-1

[Event "SVK Extraliga 2019-20"]
[Site "Slovakia"]
[Date "2019.11.23"]
[Round "3.8"]
[White "Haring, Viktor"]
[Black "Walterova, Ema"]
[Result "1-0"]
[ECO "C44"]
[WhiteElo "2266"]
[BlackElo "1766"]
[Annotator "NA"]
[PlyCount "59"]
[EventDate "2019.10.19"]
[EventType "team-tourn"]
[EventCountry "SVK"]
[SourceTitle "playchess.com"]
[Source "ChessBase"]
[SourceQuality "1"]
[WhiteTeam "Liptovska"]
[BlackTeam "KSN"]
[TimeControl "40/5400+30:1800+30"]

1. e4 {[%emt 0:00:10]} e5 {[%emt 0:00:00]} 2. Nf3 {[%emt 0:00:36]} Nc6 {[%emt 0:00:00]} 3. Bb5 {[%emt 0:00:12]} Nd4 {[%emt 0:00:30]} 4. Nxd4 {[%emt 0:03:11]} exd4 {[%emt 0:00:08]} 5. O-O {[%emt 0:01:47]} c6 {[%emt 0:10:06]} 6. Bc4 {[%emt 0:01:41]} Nf6 {[%emt 0:01:38]} 7. Re1 {[%emt 0:08:28]} d6 {[%emt 0:16:37]} 8. c3 {[%emt 0:11:29]} dxc3 {[%emt 0:11:13]} 9. Nxc3 {[%emt 0:00:29]} Be7 {[%emt 0:01:23]} 10. d4 {[%emt 0:08:52]} O-O {[%emt 0:09:00]} 11. Bb3 {[%emt 0:01:16]} Re8 {[%emt 0:10:47]} 12. Bf4 {[%emt 0:07:49]} Be6 {[%emt 0:13:12]} 13. Bc2 {[%emt 0:05:50]} d5 {[%emt 0:01:53]} 14. e5 {[%emt 0:11:13]} Nd7 {[%emt 0:00:22]} 15. Ne2 {[%emt 0:00:47]} Bg5 {[%emt 0:03:05]} 16. Bxg5 {[%emt 0:02:06]} Qxg5 {[%emt 0:00:02]} 17. f4 {[%emt 0:00:27]} Qh5 {[%emt 0:01:48]} 18. Qd3 {[%emt 0:02:34]} Nf8 {[%emt 0:01:20]} 19. f5 {[%emt 0:02:41]} Bd7 {[%emt 0:01:08]} 20. Nf4 {[%emt 0:04:17]} Qg5 {[%emt 0:01:23]} 21. g3 {[%emt 0:00:36]} g6 {[%emt 0:05:11]} 22. fxg6 {[%emt 0:05:57]} hxg6 {[%emt 0:02:03]} 23. h4 {[%emt 0:02:34]} Qe7 {[%emt 0:02:41]} 24. Qd2 {[%emt 0:05:33]} Ne6 {[%emt 0:02:40]} 25. Rf1 {[%emt 0:07:08]} Ng7 {[%emt 0:02:13]} 26. Rae1 {[%emt 0:00:13]} Bf5 {[%emt 0:01:35]} 27. Bxf5 {[%emt 0:00:49]} gxf5 {[%emt 0:00:53]} 28. Nh3 {[%emt 0:03:11]} c5 {[%emt 0:00:32]} 29. h5 {[%emt 0:00:25]} Nxh5 {[%emt 0:00:31]} 30. Qh6 {[%emt 0:01:21]} 1-0

[Event "SVK Extraliga 2019-20"]
[Site "Slovakia"]
[Date "2019.11.23"]
[Round "3.8"]
[White "Kusiak, Matej"]
[Black "Jancovic, Peter"]
[Result "1-0"]
[ECO "B51"]
[WhiteElo "2234"]
[BlackElo "2304"]
[Annotator "NA"]
[PlyCount "131"]
[EventDate "2019.10.19"]
[EventType "team-tourn"]
[EventCountry "SVK"]
[SourceTitle "playchess.com"]
[Source "ChessBase"]
[SourceQuality "1"]
[WhiteTeam "Prakovce"]
[BlackTeam "Slovan"]
[TimeControl "40/5400+30:1800+30"]

1. e4 {[%emt 0:03:28]} c5 {[%emt 0:00:00]} 2. Nf3 {[%emt 0:00:05]} d6 {[%emt 0:00:03]} 3. Bb5+ {[%emt 0:00:24]} Nd7 {[%emt 0:00:17]} 4. d4 {[%emt 0:00:05]} cxd4 {[%emt 0:01:24]} 5. Qxd4 {[%emt 0:00:13]} a6 {[%emt 0:00:51]} 6. Be2 {[%emt 0:00:26]} e5 {[%emt 0:00:30]} 7. Qe3 {[%emt 0:00:21]} Ngf6 {[%emt 0:01:49]} 8. O-O {[%emt 0:00:46]} Be7 {[%emt 0:05:16]} 9. c4 {[%emt 0:12:05]} O-O {[%emt 0:01:32]} 10. Nc3 {[%emt 0:00:23]} Re8 {[%emt 0:07:26]} 11. b3 {[%emt 0:01:03]} Nc5 {[%emt 0:06:05]} 12. Rd1 {[%emt 0:00:58]} Qa5 {[%emt 0:19:55]} 13. Rb1 {[%emt 0:02:55]} Ne6 {[%emt 0:07:24]} 14. b4 {[%emt 0:06:51]} Qc7 {[%emt 0:00:21]} 15. g3 {[%emt 0:05:13]} Bd7 {[%emt 0:02:57]} 16. Qd3 {[%emt 0:09:58]} b5 {[%emt 0:06:47]} 17. Nd5 {[%emt 0:03:30]} Nxd5 {[%emt 0:07:24]} 18. cxd5 {[%emt 0:00:25]} Nf8 {[%emt 0:00:46]} 19. Nd2 {[%emt 0:15:28]} Rec8 {[%emt 0:04:46]} 20. Nb3 {[%emt 0:02:27]} Qc2 {[%emt 0:05:06]} 21. Na5 {[%emt 0:12:57]} Ng6 {[%emt 0:03:14]} 22. Be3 {[%emt 0:01:13]} f5 {[%emt 0:02:17]} 23. Nc6 {[%emt 0:01:52]} Qxd3 {[%emt 0:00:34]} 24. Bxd3 {[%emt 0:00:03]} Bxc6 {[%emt 0:02:51]} 25. dxc6 {[%emt 0:04:20]} f4 {[%emt 0:00:06]} 26. Bd2 {[%emt 0:03:42]} Rxc6 {[%emt 0:01:23]} 27. a4 {[%emt 0:00:15]} Rb8 {[%emt 0:04:48]} 28. axb5 {[%emt 0:01:15]} axb5 {[%emt 0:00:04]} 29. Rbc1 {[%emt 0:00:12]} Rcb6 {[%emt 0:00:51]} 30. Bc2 {[%emt 0:00:35]} Bd8 {[%emt 0:01:52]} 31. Bb3+ {[%emt 0:00:09]} Kh8 {[%emt 0:00:06]} 32. Bd5 {[%emt 0:02:08]} Ra6 {[%emt 0:03:13]} 33. Kg2 {[%emt 0:01:06]} h6 {[%emt 0:00:41]} 34. Rc2 {[%emt 0:01:16]} fxg3 {[%emt 0:00:55]} 35. hxg3 {[%emt 0:00:02]} Ne7 {[%emt 0:00:14]} 36. Be6 {[%emt 0:05:38]} Kh7 {[%emt 0:01:43]} 37. Be3 {[%emt 0:00:53]} Nc6 {[%emt 0:01:23]} 38. Rxd6 {[%emt 0:00:29]} Nxb4 {[%emt 0:00:03]} 39. Bf5+ {[%emt 0:01:19]} Kg8 {[%emt 0:00:34]} 40. Rcd2 {[%emt 0:01:00]} Rxd6 41. Rxd6 Nc2 {[%emt 0:12:00]} 42. Ba7 {[%emt 0:00:00]} Ra8 {[%emt 0:00:07]} 43. Be6+ {[%emt 0:00:15]} Kh7 {[%emt 0:01:48]} 44. Rd7 {[%emt 0:00:56]} Bf6 {[%emt 0:01:20]} 45. Rb7 {[%emt 0:01:23]} b4 {[%emt 0:00:36]} 46. Bc5 {[%emt 0:07:06]} Re8 {[%emt 0:06:54]} 47. Bf5+ {[%emt 0:06:23]} Kg8 {[%emt 0:00:07]} 48. Bg6 {[%emt 0:00:07]} Rc8 {[%emt 0:01:05]} 49. f4 {[%emt 0:01:08]} Ne1+ {[%emt 0:04:12]} 50. Kh3 {[%emt 0:00:24]} Nd3 {[%emt 0:00:11]} 51. Bd6 {[%emt 0:00:53]} Rd8 {[%emt 0:00:34]} 52. Bc7 {[%emt 0:00:19]} Rc8 {[%emt 0:01:27]} 53. Bb8 {[%emt 0:06:50]} Nc5 {[%emt 0:05:23]} 54. Rb5 {[%emt 0:00:54]} exf4 {[%emt 0:01:39]} 55. gxf4 {[%emt 0:03:15]} Be7 {[%emt 0:00:45]} 56. Be5 {[%emt 0:02:12]} Nd3 {[%emt 0:01:08]} 57. Bf5 {[%emt 0:01:13]} Rc5 {[%emt 0:00:40]} 58. Rb7 {[%emt 0:03:27]} Nxe5 {[%emt 0:00:38]} 59. Rxe7 {[%emt 0:00:05]} Nc6 {[%emt 0:00:47]} 60. Rb7 {[%emt 0:01:17]} g5 {[%emt 0:00:32]} 61. Be6+ {[%emt 0:02:04]} Kf8 {[%emt 0:00:17]} 62. f5 {[%emt 0:00:29]} Nd4 {[%emt 0:00:43]} 63. Bd5 {[%emt 0:00:39]} b3 {[%emt 0:00:35]} 64. f6 {[%emt 0:00:56]} Rb5 {[%emt 0:00:30]} 65. Rg7 {[%emt 0:00:35]} b2 {[%emt 0:00:30]} 66. Rg8# {[%emt 0:00:07]} 1-0

[Event "SVK Extraliga 2019-20"]
[Site "Slovakia"]
[Date "2019.11.23"]
[Round "3.8"]
[White "Bombek, Peter"]
[Black "Takacs, Laszlo"]
[Result "1/2-1/2"]
[ECO "A45"]
[WhiteElo "2151"]
[BlackElo "2249"]
[Annotator "NA"]
[PlyCount "95"]
[EventDate "2019.10.19"]
[EventType "team-tourn"]
[EventCountry "SVK"]
[SourceTitle "playchess.com"]
[Source "ChessBase"]
[SourceQuality "1"]
[WhiteTeam "Dubnica"]
[BlackTeam "Streda"]
[TimeControl "40/5400+30:1800+30"]

1. d4 {[%emt 0:00:00]} Nf6 {[%emt 0:00:00]} 2. Bg5 {[%emt 0:00:00]} Ne4 {[%emt 0:00:00]} 3. Bf4 {[%emt 0:00:05]} c5 {[%emt 0:00:00]} 4. f3 {[%emt 0:00:27]} Qa5+ {[%emt 0:00:06]} 5. c3 {[%emt 0:00:21]} Nf6 {[%emt 0:00:18]} 6. Nd2 {[%emt 0:00:18]} cxd4 {[%emt 0:00:18]} 7. Nb3 {[%emt 0:00:21]} Qd8 {[%emt 0:00:10]} 8. cxd4 {[%emt 0:07:31]} d5 {[%emt 0:02:36]} 9. e3 {[%emt 0:01:31]} e6 {[%emt 0:03:12]} 10. Ne2 {[%emt 0:05:34]} Nc6 {[%emt 0:06:15]} 11. g4 {[%emt 0:05:49]} a5 {[%emt 0:10:21]} 12. Nc3 {[%emt 0:03:16]} Bd6 {[%emt 0:15:03]} 13. Bxd6 {[%emt 0:04:23]} Qxd6 {[%emt 0:00:05]} 14. Nb5 {[%emt 0:03:22]} Qb4+ {[%emt 0:10:15]} 15. Qd2 {[%emt 0:01:52]} Qxd2+ {[%emt 0:01:33]} 16. Kxd2 {[%emt 0:03:41]} Ke7 {[%emt 0:00:11]} 17. Rc1 {[%emt 0:03:02]} Bd7 {[%emt 0:05:55]} 18. Nc5 {[%emt 0:05:16]} Rab8 {[%emt 0:00:24]} 19. Be2 {[%emt 0:04:06]} Ne8 {[%emt 0:13:39]} 20. f4 {[%emt 0:08:56]} Nd6 {[%emt 0:02:12]} 21. Nxd6 {[%emt 0:03:30]} Kxd6 {[%emt 0:00:12]} 22. Bb5 {[%emt 0:01:09]} Be8 {[%emt 0:07:07]} 23. Bxc6 {[%emt 0:02:01]} Bxc6 {[%emt 0:00:37]} 24. g5 {[%emt 0:02:54]} b6 {[%emt 0:12:00]} 25. Nd3 {[%emt 0:01:23]} f6 {[%emt 0:04:15]} 26. Rhg1 {[%emt 0:01:32]} Rb7 {[%emt 0:00:33]} 27. Nf2 {[%emt 0:05:55]} Re7 {[%emt 0:03:42]} 28. gxf6 {[%emt 0:02:19]} gxf6 {[%emt 0:00:05]} 29. Rg3 {[%emt 0:07:54]} Rf8 {[%emt 0:01:34]} 30. Rcg1 {[%emt 0:02:51]} Be8 {[%emt 0:00:48]} 31. Rg8 {[%emt 0:03:20]} Rxg8 {[%emt 0:00:08]} 32. Rxg8 {[%emt 0:00:00]} Bg6 {[%emt 0:00:05]} 33. Rd8+ {[%emt 0:01:03]} Rd7 {[%emt 0:01:07]} 34. Rxd7+ {[%emt 0:00:34]} Kxd7 {[%emt 0:00:04]} 35. Ng4 {[%emt 0:03:09]} Ke7 {[%emt 0:00:06]} 36. h4 {[%emt 0:01:27]} Bf5 {[%emt 0:00:41]} 37. Nf2 {[%emt 0:02:42]} Kf7 {[%emt 0:00:50]} 38. Nh1 {[%emt 0:00:08]} Bb1 {[%emt 0:01:27]} 39. a3 {[%emt 0:00:31]} Ke7 {[%emt 0:00:49]} 40. Kc3 {[%emt 0:00:50]} Kd6 {[%emt 0:00:33]} 41. Ng3 {[%emt 0:31:16]} b5 {[%emt 0:18:19]} 42. Nh5 {[%emt 0:00:00]} Ke7 {[%emt 0:00:12]} 43. b4 {[%emt 0:00:00]} a4 {[%emt 0:00:58]} 44. Kd2 {[%emt 0:00:00]} Kf7 {[%emt 0:00:12]} 45. Ng3 {[%emt 0:00:00]} Kg6 {[%emt 0:01:14]} 46. Ke1 {[%emt 0:00:00]} Bd3 {[%emt 0:00:19]} 47. Kf2 {[%emt 0:00:00]} Bc2 {[%emt 0:04:49]} 48. Ke1 {[%emt 0:00:00]} 1/2-1/2

[Event "SVK Extraliga 2019-20"]
[Site "Slovakia"]
[Date "2019.11.23"]
[Round "3.8"]
[White "Mydlarik, Martin"]
[Black "Gazik, Igor"]
[Result "0-1"]
[ECO "B15"]
[WhiteElo "2127"]
[BlackElo "2253"]
[Annotator "NA"]
[PlyCount "124"]
[EventDate "2019.10.19"]
[EventType "team-tourn"]
[EventCountry "SVK"]
[SourceTitle "playchess.com"]
[Source "ChessBase"]
[SourceQuality "1"]
[WhiteTeam "Modra"]
[BlackTeam "Podhajska"]
[TimeControl "40/5400+30:1800+30"]

1. e4 {[%emt 0:00:00]} c6 {[%emt 0:00:00]} 2. d4 {[%emt 0:00:38]} d5 {[%emt 0:00:00]} 3. Nc3 {[%emt 0:00:09]} g6 {[%emt 0:00:00]} 4. h3 {[%emt 0:03:18]} Bg7 {[%emt 0:00:27]} 5. Nf3 {[%emt 0:00:07]} Nh6 {[%emt 0:01:27]} 6. Bf4 {[%emt 0:04:06]} f6 {[%emt 0:01:17]} 7. Qd2 {[%emt 0:07:00]} Nf7 {[%emt 0:00:09]} 8. exd5 {[%emt 0:01:35]} cxd5 {[%emt 0:00:17]} 9. Bb5+ {[%emt 0:00:31]} Nc6 {[%emt 0:00:22]} 10. O-O {[%emt 0:00:20]} O-O {[%emt 0:00:17]} 11. Rfe1 {[%emt 0:01:19]} Re8 {[%emt 0:08:33]} 12. Ba4 {[%emt 0:11:03]} e6 {[%emt 0:02:57]} 13. Re2 {[%emt 0:03:04]} Bd7 {[%emt 0:00:18]} 14. Rae1 {[%emt 0:00:37]} Rc8 {[%emt 0:11:05]} 15. Nd1 {[%emt 0:09:32]} a6 {[%emt 0:07:09]} 16. c3 {[%emt 0:02:14]} b5 {[%emt 0:12:37]} 17. Bc2 {[%emt 0:03:09]} Na5 {[%emt 0:01:40]} 18. b3 {[%emt 0:02:46]} Nc6 {[%emt 0:21:18]} 19. Nb2 {[%emt 0:04:42]} e5 {[%emt 0:05:31]} 20. dxe5 {[%emt 0:01:20]} fxe5 {[%emt 0:00:05]} 21. Be3 {[%emt 0:03:46]} Be6 {[%emt 0:03:01]} 22. Ng5 {[%emt 0:02:04]} Nxg5 {[%emt 0:00:51]} 23. Bxg5 {[%emt 0:00:02]} Qa5 {[%emt 0:00:45]} 24. Bb1 {[%emt 0:05:54]} e4 {[%emt 0:06:51]} 25. Nd1 {[%emt 0:03:39]} Bf7 {[%emt 0:12:08]} 26. Qf4 {[%emt 0:02:40]} b4 {[%emt 0:01:14]} 27. cxb4 {[%emt 0:12:28]} Qxb4 {[%emt 0:00:08]} 28. Ne3 {[%emt 0:07:42]} Nd4 {[%emt 0:00:34]} 29. Ng4 {[%emt 0:00:10]} Nxe2+ {[%emt 0:01:40]} 30. Rxe2 {[%emt 0:00:01]} Qb8 {[%emt 0:00:27]} 31. Qxb8 {[%emt 0:05:12]} Rxb8 {[%emt 0:00:01]} 32. Nf6+ {[%emt 0:00:08]} Bxf6 {[%emt 0:00:11]} 33. Bxf6 {[%emt 0:00:04]} Rbc8 {[%emt 0:00:09]} 34. Re1 {[%emt 0:00:14]} Rc6 {[%emt 0:01:22]} 35. Bb2 {[%emt 0:02:22]} Rb8 {[%emt 0:00:15]} 36. Kh2 {[%emt 0:01:04]} Be6 {[%emt 0:00:37]} 37. Kg3 {[%emt 0:00:50]} a5 {[%emt 0:00:47]} 38. Be5 {[%emt 0:00:29]} Rbc8 {[%emt 0:00:53]} 39. Bb2 {[%emt 0:01:33]} Rb6 {[%emt 0:00:37]} 40. Bd4 {[%emt 0:00:45]} Rb4 {[%emt 0:00:23]} 41. Be5 {[%emt 0:01:20]} Bf5 {[%emt 0:04:55]} 42. Bd6 {[%emt 0:06:33]} Rb6 {[%emt 0:02:34]} 43. Be5 {[%emt 0:00:57]} Kf7 {[%emt 0:06:26]} 44. Kf4 {[%emt 0:06:45]} Ke6 {[%emt 0:03:05]} 45. Bd4 {[%emt 0:01:40]} Rb4 {[%emt 0:00:19]} 46. Ke3 {[%emt 0:00:54]} g5 {[%emt 0:01:10]} 47. Rd1 {[%emt 0:06:02]} h5 {[%emt 0:02:31]} 48. Re1 {[%emt 0:02:39]} a4 {[%emt 0:05:05]} 49. bxa4 {[%emt 0:00:14]} Rcc4 {[%emt 0:00:14]} 50. Ba1 {[%emt 0:02:11]} d4+ {[%emt 0:00:37]} 51. Ke2 {[%emt 0:00:04]} Rxa4 {[%emt 0:03:18]} 52. Rd1 {[%emt 0:03:09]} g4 {[%emt 0:01:49]} 53. hxg4 {[%emt 0:00:51]} Bxg4+ {[%emt 0:00:09]} 54. f3 {[%emt 0:00:10]} exf3+ {[%emt 0:00:06]} 55. gxf3 {[%emt 0:00:07]} Bf5 {[%emt 0:00:05]} 56. Bxf5+ {[%emt 0:01:45]} Kxf5 {[%emt 0:00:06]} 57. Kd3 {[%emt 0:00:11]} Rcb4 {[%emt 0:00:08]} 58. Rd2 {[%emt 0:02:35]} Kf4 {[%emt 0:00:20]} 59. Ke2 {[%emt 0:01:01]} h4 {[%emt 0:00:20]} 60. a3 {[%emt 0:01:05]} Rc4 {[%emt 0:01:39]} 61. Kf2 {[%emt 0:00:09]} h3 {[%emt 0:00:24]} 62. Bb2 {[%emt 0:00:12]} d3 {[%emt 0:01:11]} 0-1

[Event "SVK Extraliga 2019-20"]
[Site "Slovakia"]
[Date "2019.11.24"]
[Round "4"]
[White "Piorun, Kacper"]
[Black "Markos, Jan"]
[Result "1/2-1/2"]
[ECO "E46"]
[WhiteElo "2623"]
[BlackElo "2571"]
[Annotator "ChessBase"]
[PlyCount "22"]
[EventDate "2019.10.19"]
[EventType "team-tourn"]
[EventCountry "SVK"]
[SourceTitle "playchess.com"]
[Source "ChessBase"]
[SourceQuality "1"]
[WhiteTeam "Dunajov"]
[BlackTeam "Snina"]
[TimeControl "40/5400+30:1800+30"]

1. d4 {[%emt 0:00:00]} Nf6 {[%emt 0:00:00]} 2. c4 {[%emt 0:00:00]} e6 {[%emt 0:01:02]} 3. Nc3 {[%emt 0:00:00]} Bb4 {[%emt 0:00:05]} 4. e3 {[%emt 0:00:00]} O-O {[%emt 0:00:09]} 5. Bd2 d5 {[%emt 0:05:13]} 6. Nf3 {[%emt 0:00:03]} b6 {[%emt 0:12:44]} 7. cxd5 {[%emt 0:00:06]} exd5 {[%emt 0:00:19]} 8. Rc1 {[%emt 0:00:07]} a6 {[%emt 0:03:02]} 9. Bd3 {[%emt 0:06:10]} Bd6 {[%emt 0:01:16]} 10. Qb3 {[%emt 0:06:21]} Bb7 {[%emt 0:03:20]} 11. O-O {[%emt 0:12:56]} Nbd7 {[%emt 0:00:17]} 1/2-1/2

[Event "SVK Extraliga 2019-20"]
[Site "Slovakia"]
[Date "2019.11.24"]
[Round "4"]
[White "Tazbir, Marcin"]
[Black "Krak, Tomas"]
[Result "1/2-1/2"]
[ECO "B23"]
[WhiteElo "2529"]
[BlackElo "2317"]
[Annotator "ChessBase"]
[PlyCount "41"]
[EventDate "2019.10.19"]
[EventType "team-tourn"]
[EventCountry "SVK"]
[SourceTitle "playchess.com"]
[Source "ChessBase"]
[SourceQuality "1"]
[WhiteTeam "Dunajov"]
[BlackTeam "Snina"]
[TimeControl "40/5400+30:1800+30"]

1. e4 {[%emt 0:00:00]} c5 {[%emt 0:00:22]} 2. Nc3 {[%emt 0:00:00]} d6 {[%emt 0:00:12]} 3. d4 {[%emt 0:00:00]} cxd4 {[%emt 0:00:26]} 4. Qxd4 {[%emt 0:00:00]} a6 {[%emt 0:02:14]} 5. b3 {[%emt 0:00:04]} Nf6 {[%emt 0:08:19]} 6. Bb2 {[%emt 0:00:17]} e5 {[%emt 0:05:51]} 7. Qd2 {[%emt 0:01:12]} Be7 {[%emt 0:00:07]} 8. f3 {[%emt 0:01:07]} Be6 {[%emt 0:04:34]} 9. O-O-O {[%emt 0:05:30]} Nbd7 {[%emt 0:06:06]} 10. Kb1 {[%emt 0:02:27]} b5 {[%emt 0:01:35]} 11. g4 {[%emt 0:03:06]} Nb6 {[%emt 0:08:29]} 12. Ba3 {[%emt 0:09:12]} O-O {[%emt 0:00:55]} 13. Nge2 {[%emt 0:07:35]} d5 {[%emt 0:09:27]} 14. Bxe7 {[%emt 0:07:36]} Qxe7 {[%emt 0:00:09]} 15. g5 {[%emt 0:00:03]} Nh5 {[%emt 0:00:09]} 16. Nxd5 {[%emt 0:03:13]} Nxd5 {[%emt 0:00:17]} 17. exd5 {[%emt 0:00:06]} Bxd5 {[%emt 0:00:22]} 18. Qe3 {[%emt 0:02:22]} Rad8 {[%emt 0:01:45]} 19. Bh3 {[%emt 0:02:37]} f5 {[%emt 0:09:31]} 20. gxf6 {[%emt 0:01:51]} Qxf6 {[%emt 0:00:45]} 21. Bg4 {[%emt 0:01:02]} 1/2-1/2